[Event "Titled Tuesday Blitz April 19 Early 2022"]
[White "Koelle, Tobias"]
[Black "Buscar, Michael"]
[WhiteFideId "16207378"]
[BlackFideId "2603616"]
[WhiteElo "2541"]
[BlackElo "2010"]
[Result "1-0"]
[Round "10"]
[TimeControl "180+1"]
[Date "2022.04.19"]
[WhiteClock "0:01:27"]
[BlackClock "0:00:20"]

1. e4 {[%clk 0:03:00]}  c5 {[%clk 0:02:55]} 2. Nf3 {[%clk 0:02:55]}  Nc6 {[%clk 0:02:55]} 3. d4 {[%clk 0:02:56]}  cxd4 {[%clk 0:02:55]} 4. Nxd4 {[%clk 0:02:56]}  Nf6 {[%clk 0:02:56]} 5. Nc3 {[%clk 0:02:55]}  e5 {[%clk 0:02:56]} 6. Ndb5 {[%clk 0:02:55]}  h6 {[%clk 0:02:56]} 7. Nd5 {[%clk 0:02:51]}  Nxd5 {[%clk 0:02:57]} 8. exd5 {[%clk 0:02:52]}  a6 {[%clk 0:02:57]} 9. Nc3 {[%clk 0:02:49]}  Nb8 {[%clk 0:02:56]} 10. Be3 {[%clk 0:02:47]}  d6 {[%clk 0:02:57]} 11. Bd3 {[%clk 0:02:47]}  Be7 {[%clk 0:02:52]} 12. a4 {[%clk 0:02:46]}  O-O {[%clk 0:02:50]} 13. O-O {[%clk 0:02:46]}  Nd7 {[%clk 0:02:48]} 14. a5 {[%clk 0:02:45]}  f5 {[%clk 0:02:42]} 15. f3 {[%clk 0:02:45]}  Qe8 {[%clk 0:02:38]} 16. Na4 {[%clk 0:02:44]}  Qh5 {[%clk 0:02:28]} 17. Be2 {[%clk 0:02:42]}  f4 {[%clk 0:02:18]} 18. Bf2 {[%clk 0:02:40]}  Bd8 {[%clk 0:02:10]} 19. b4 {[%clk 0:02:40]}  Bh4 {[%clk 0:02:06]} 20. c4 {[%clk 0:02:34]}  Rf6 {[%clk 0:01:58]} 21. Bd3 {[%clk 0:02:32]}  Bxf2+ {[%clk 0:01:46]} 22. Rxf2 {[%clk 0:02:33]}  Nf8 {[%clk 0:01:46]} 23. Nb6 {[%clk 0:02:30]}  Rb8 {[%clk 0:01:46]} 24. c5 {[%clk 0:02:29]}  Bf5 {[%clk 0:01:41]} 25. c6 {[%clk 0:02:27]}  Qf7 {[%clk 0:01:30]} 26. Rc1 {[%clk 0:02:23]}  bxc6 {[%clk 0:01:26]} 27. dxc6 {[%clk 0:02:22]}  Ne6 {[%clk 0:01:21]} 28. Bxf5 {[%clk 0:02:10]}  Rxf5 {[%clk 0:01:20]} 29. Qxd6 {[%clk 0:02:11]}  Rd8 {[%clk 0:01:18]} 30. Qxd8+ {[%clk 0:02:11]}  Nxd8 {[%clk 0:01:18]} 31. c7 {[%clk 0:02:11]}  Ne6 {[%clk 0:01:08]} 32. c8=Q+ {[%clk 0:02:10]}  Kh7 {[%clk 0:01:09]} 33. Qxa6 {[%clk 0:02:05]}  Nd4 {[%clk 0:01:07]} 34. Qf1 {[%clk 0:01:58]}  Rg5 {[%clk 0:01:04]} 35. Kh1 {[%clk 0:01:58]}  Qh5 {[%clk 0:01:01]} 36. Qd3+ {[%clk 0:01:49]}  Nf5 {[%clk 0:00:59]} 37. Rc7 {[%clk 0:01:44]}  Kh8 {[%clk 0:00:53]} 38. Kg1 {[%clk 0:01:39]}  Qh4 {[%clk 0:00:29]} 39. Rc8+ {[%clk 0:01:29]}  Kh7 {[%clk 0:00:29]} 40. Rf8 {[%clk 0:01:29]}  g6 {[%clk 0:00:20]} 41. Qd7+ {[%clk 0:01:26]}  Ng7 {[%clk 0:00:20]} 42. Rf7 {[%clk 0:01:27]} 1-0


[Site "https://www.chess.com"]

[Event "Titled Tuesday Blitz April 19 Early 2022"]
[White "Korchmar, Vasiliy"]
[Black "Gabdrakhmanov, Azat"]
[WhiteFideId "24131750"]
[BlackFideId "34189197"]
[WhiteElo "2370"]
[BlackElo "2279"]
[Result "0-1"]
[Round "10"]
[TimeControl "180+1"]
[Date "2022.04.19"]
[WhiteClock "0:01:46"]
[BlackClock "0:01:31"]

1. d4 {[%clk 0:03:00]}  Nf6 {[%clk 0:02:59]} 2. Bf4 {[%clk 0:03:00]}  g6 {[%clk 0:02:59]} 3. Nc3 {[%clk 0:03:00]}  d5 {[%clk 0:02:59]} 4. e3 {[%clk 0:03:00]}  Bg7 {[%clk 0:03:00]} 5. h4 {[%clk 0:02:59]}  h5 {[%clk 0:02:59]} 6. Nf3 {[%clk 0:02:59]}  O-O {[%clk 0:02:59]} 7. Ne5 {[%clk 0:03:00]}  c5 {[%clk 0:02:57]} 8. Qd2 {[%clk 0:03:00]}  Nc6 {[%clk 0:02:55]} 9. Bb5 {[%clk 0:03:00]}  Nxe5 {[%clk 0:02:25]} 10. dxe5 {[%clk 0:02:55]}  Ne4 {[%clk 0:02:19]} 11. Qxd5 {[%clk 0:02:34]}  Nxc3 {[%clk 0:02:18]} 12. Qxd8 {[%clk 0:02:33]}  Rxd8 {[%clk 0:02:19]} 13. bxc3 {[%clk 0:02:33]}  Bf5 {[%clk 0:02:10]} 14. Rc1 {[%clk 0:02:22]}  Be6 {[%clk 0:01:59]} 15. Ra1 {[%clk 0:02:16]}  Bf5 {[%clk 0:01:55]} 16. Ba4 {[%clk 0:02:04]}  a6 {[%clk 0:01:51]} 17. c4 {[%clk 0:02:05]}  Rab8 {[%clk 0:01:47]} 18. Rb1 {[%clk 0:02:00]}  Be6 {[%clk 0:01:43]} 19. Rb6 {[%clk 0:01:46]}  Bxc4 {[%clk 0:01:32]} 20. e6 {[%clk 0:01:46]}  Bc3# {[%clk 0:01:31]} 0-1


[Site "https://www.chess.com"]

[Event "Titled Tuesday Blitz April 19 Early 2022"]
[White "Kosteniuk, Alexandra"]
[Black "Ingebretsen, Jens E"]
[WhiteFideId "4128125"]
[BlackFideId "1522965"]
[WhiteElo "2469"]
[BlackElo "2072"]
[Result "1-0"]
[Round "10"]
[TimeControl "180+1"]
[Date "2022.04.19"]
[WhiteClock "0:00:12"]
[BlackClock "0:00:07"]

1. Nf3 {[%clk 0:03:00]}  Nf6 {[%clk 0:02:56]} 2. g3 {[%clk 0:03:00]}  d5 {[%clk 0:02:55]} 3. Bg2 {[%clk 0:03:01]}  c6 {[%clk 0:02:56]} 4. O-O {[%clk 0:03:01]}  Bg4 {[%clk 0:02:56]} 5. d4 {[%clk 0:03:00]}  e6 {[%clk 0:02:54]} 6. h3 {[%clk 0:02:59]}  Bxf3 {[%clk 0:02:54]} 7. Bxf3 {[%clk 0:02:59]}  Nbd7 {[%clk 0:02:55]} 8. c4 {[%clk 0:02:59]}  Bd6 {[%clk 0:02:52]} 9. Nc3 {[%clk 0:02:58]}  h5 {[%clk 0:02:51]} 10. h4 {[%clk 0:02:49]}  dxc4 {[%clk 0:02:43]} 11. Bg5 {[%clk 0:02:46]}  Qc7 {[%clk 0:02:41]} 12. e4 {[%clk 0:02:40]}  e5 {[%clk 0:02:25]} 13. d5 {[%clk 0:02:38]}  cxd5 {[%clk 0:02:14]} 14. Nxd5 {[%clk 0:02:10]}  Nxd5 {[%clk 0:02:12]} 15. Qxd5 {[%clk 0:02:09]}  Nb6 {[%clk 0:01:54]} 16. Qd1 {[%clk 0:01:55]}  f6 {[%clk 0:01:48]} 17. Bxh5+ {[%clk 0:01:50]}  Ke7 {[%clk 0:01:46]} 18. Be3 {[%clk 0:01:50]}  Rag8 {[%clk 0:01:08]} 19. Bg6 {[%clk 0:01:50]}  Bc5 {[%clk 0:01:03]} 20. Bxc5+ {[%clk 0:01:46]}  Qxc5 {[%clk 0:01:03]} 21. Qg4 {[%clk 0:01:42]}  Nc8 {[%clk 0:00:57]} 22. Rad1 {[%clk 0:01:40]}  Nd6 {[%clk 0:00:57]} 23. Rd5 {[%clk 0:01:40]}  Qc6 {[%clk 0:00:56]} 24. Rfd1 {[%clk 0:01:39]}  Rd8 {[%clk 0:00:56]} 25. Bf5 {[%clk 0:01:34]}  Nxf5 {[%clk 0:00:54]} 26. Qxf5 {[%clk 0:01:32]}  Rxd5 {[%clk 0:00:44]} 27. Rxd5 {[%clk 0:01:27]}  Rd8 {[%clk 0:00:42]} 28. Qg6 {[%clk 0:01:24]}  Rxd5 {[%clk 0:00:41]} 29. Qxg7+ {[%clk 0:01:24]}  Ke6 {[%clk 0:00:33]} 30. Qg8+ {[%clk 0:01:24]}  Kd6 {[%clk 0:00:33]} 31. exd5 {[%clk 0:01:04]}  Qxd5 {[%clk 0:00:33]} 32. Qf8+ {[%clk 0:00:54]}  Ke6 {[%clk 0:00:29]} 33. Qe8+ {[%clk 0:00:54]}  Kd6 {[%clk 0:00:29]} 34. h5 {[%clk 0:00:55]}  Qd1+ {[%clk 0:00:27]} 35. Kg2 {[%clk 0:00:55]}  Qd5+ {[%clk 0:00:27]} 36. Kh2 {[%clk 0:00:55]}  Qf3 {[%clk 0:00:27]} 37. Kg1 {[%clk 0:00:43]}  Qd1+ {[%clk 0:00:27]} 38. Kg2 {[%clk 0:00:44]}  Qd5+ {[%clk 0:00:27]} 39. f3 {[%clk 0:00:44]}  Qd2+ {[%clk 0:00:26]} 40. Kh3 {[%clk 0:00:45]}  Qe2 {[%clk 0:00:19]} 41. Qd8+ {[%clk 0:00:39]}  Ke6 {[%clk 0:00:19]} 42. Qc8+ {[%clk 0:00:37]}  Kd6 {[%clk 0:00:18]} 43. Qf5 {[%clk 0:00:36]}  Qf1+ {[%clk 0:00:17]} 44. Kg4 {[%clk 0:00:36]}  Ke7 {[%clk 0:00:17]} 45. h6 {[%clk 0:00:36]}  Qh1 {[%clk 0:00:14]} 46. h7 {[%clk 0:00:31]}  Qh6 {[%clk 0:00:14]} 47. Qh5 {[%clk 0:00:29]}  Qg7+ {[%clk 0:00:13]} 48. Kf5 {[%clk 0:00:28]}  Qh8 {[%clk 0:00:11]} 49. Ke4 {[%clk 0:00:20]}  b5 {[%clk 0:00:11]} 50. Qg6 {[%clk 0:00:20]}  f5+ {[%clk 0:00:06]} 51. Ke3 {[%clk 0:00:17]}  f4+ {[%clk 0:00:06]} 52. Kf2 {[%clk 0:00:16]}  fxg3+ {[%clk 0:00:07]} 53. Kxg3 {[%clk 0:00:17]}  Kf8 {[%clk 0:00:05]} 54. Qf5+ {[%clk 0:00:13]}  Kg7 {[%clk 0:00:05]} 55. Qxe5+ {[%clk 0:00:13]}  Kxh7 {[%clk 0:00:06]} 56. Qxh8+ {[%clk 0:00:12]}  Kxh8 {[%clk 0:00:07]} 57. Kf4 {[%clk 0:00:13]}  Kg7 {[%clk 0:00:05]} 58. Ke4 {[%clk 0:00:13]}  Kf6 {[%clk 0:00:06]} 59. Kd4 {[%clk 0:00:14]}  Kf5 {[%clk 0:00:06]} 60. Kc5 {[%clk 0:00:14]}  a6 {[%clk 0:00:06]} 61. a3 {[%clk 0:00:13]}  Kf4 {[%clk 0:00:05]} 62. Kb6 {[%clk 0:00:13]}  Kxf3 {[%clk 0:00:04]} 63. Kxa6 {[%clk 0:00:14]}  Ke4 {[%clk 0:00:04]} 64. Kxb5 {[%clk 0:00:14]}  Kd3 {[%clk 0:00:05]} 65. a4 {[%clk 0:00:12]}  c3 {[%clk 0:00:06]} 66. bxc3 {[%clk 0:00:12]}  Kxc3 {[%clk 0:00:07]} 67. a5 {[%clk 0:00:12]} 1-0


[Site "https://www.chess.com"]

[Event "Titled Tuesday Blitz April 19 Early 2022"]
[White "Kozak, Antoni"]
[Black "Constantinou, Peter"]
[WhiteFideId "21832030"]
[BlackFideId "413038"]
[WhiteElo "2236"]
[BlackElo "2230"]
[Result "1-0"]
[Round "10"]
[TimeControl "180+1"]
[Date "2022.04.19"]
[WhiteClock "0:00:37"]
[BlackClock "0:00:20"]

1. d4 {[%clk 0:03:00]}  g6 {[%clk 0:02:57]} 2. Nf3 {[%clk 0:02:58]}  Bg7 {[%clk 0:02:58]} 3. Bf4 {[%clk 0:02:55]}  d6 {[%clk 0:02:57]} 4. e3 {[%clk 0:02:55]}  Nd7 {[%clk 0:02:56]} 5. h3 {[%clk 0:02:53]}  b6 {[%clk 0:02:56]} 6. c4 {[%clk 0:02:50]}  Bb7 {[%clk 0:02:56]} 7. Nc3 {[%clk 0:02:50]}  e5 {[%clk 0:02:56]} 8. Bh2 {[%clk 0:02:49]}  Nh6 {[%clk 0:02:54]} 9. Be2 {[%clk 0:02:43]}  O-O {[%clk 0:02:54]} 10. O-O {[%clk 0:02:42]}  exd4 {[%clk 0:02:53]} 11. Nxd4 {[%clk 0:02:21]}  Nc5 {[%clk 0:02:49]} 12. Bf3 {[%clk 0:02:14]}  Bxf3 {[%clk 0:02:32]} 13. Qxf3 {[%clk 0:02:12]}  a5 {[%clk 0:02:08]} 14. Rad1 {[%clk 0:02:06]}  f6 {[%clk 0:02:02]} 15. Nd5 {[%clk 0:01:52]}  Qd7 {[%clk 0:01:39]} 16. Nb5 {[%clk 0:01:32]}  Na6 {[%clk 0:01:20]} 17. Ndxc7 {[%clk 0:01:14]}  Nxc7 {[%clk 0:01:20]} 18. Bxd6 {[%clk 0:01:14]}  Rfc8 {[%clk 0:00:22]} 19. Nxc7 {[%clk 0:01:00]}  Ra7 {[%clk 0:00:22]} 20. Nb5 {[%clk 0:00:55]}  Raa8 {[%clk 0:00:22]} 21. b3 {[%clk 0:00:49]}  Nf5 {[%clk 0:00:20]} 22. Bf8 {[%clk 0:00:42]}  Qe6 {[%clk 0:00:20]} 23. Bxg7 {[%clk 0:00:42]}  Kxg7 {[%clk 0:00:20]} 24. Nc7 {[%clk 0:00:37]} 1-0


[Site "https://www.chess.com"]

[Event "Titled Tuesday Blitz April 19 Early 2022"]
[White "Lagunov, Evgenij"]
[Black "Kotepalli, Sai Nirupama"]
[WhiteFideId "4125363"]
[BlackFideId "5039444"]
[WhiteElo "2200"]
[BlackElo "2397"]
[Result "1-0"]
[Round "10"]
[TimeControl "180+1"]
[Date "2022.04.19"]
[WhiteClock "0:00:54"]
[BlackClock "0:00:53"]

1. e4 {[%clk 0:03:00]}  c5 {[%clk 0:02:59]} 2. Nf3 {[%clk 0:03:00]}  e6 {[%clk 0:02:58]} 3. d4 {[%clk 0:03:00]}  cxd4 {[%clk 0:02:58]} 4. Nxd4 {[%clk 0:02:57]}  Nf6 {[%clk 0:02:57]} 5. Nc3 {[%clk 0:02:56]}  Nc6 {[%clk 0:02:56]} 6. Ndb5 {[%clk 0:02:54]}  Bb4 {[%clk 0:02:56]} 7. Nd6+ {[%clk 0:02:52]}  Ke7 {[%clk 0:02:51]} 8. Nxc8+ {[%clk 0:02:48]}  Rxc8 {[%clk 0:02:51]} 9. Bd3 {[%clk 0:02:46]}  d5 {[%clk 0:02:49]} 10. Bd2 {[%clk 0:02:41]}  Re8 {[%clk 0:02:43]} 11. O-O {[%clk 0:02:36]}  h6 {[%clk 0:02:37]} 12. a3 {[%clk 0:02:31]}  Bc5 {[%clk 0:02:30]} 13. exd5 {[%clk 0:02:28]}  Nxd5 {[%clk 0:02:29]} 14. Ne4 {[%clk 0:02:27]}  Bb6 {[%clk 0:02:18]} 15. Re1 {[%clk 0:02:22]}  Kf8 {[%clk 0:02:13]} 16. Qh5 {[%clk 0:02:20]}  Nf6 {[%clk 0:02:06]} 17. Qh4 {[%clk 0:02:17]}  Nxe4 {[%clk 0:01:55]} 18. Qxe4 {[%clk 0:02:15]}  Qd4 {[%clk 0:01:56]} 19. Bc3 {[%clk 0:01:47]}  Qxf2+ {[%clk 0:01:46]} 20. Kh1 {[%clk 0:01:46]}  Qf5 {[%clk 0:01:36]} 21. Qh4 {[%clk 0:01:25]}  Bf2 {[%clk 0:01:23]} 22. Qa4 {[%clk 0:01:16]}  Qh5 {[%clk 0:01:15]} 23. Rf1 {[%clk 0:01:13]}  Bg3 {[%clk 0:01:14]} 24. h3 {[%clk 0:01:14]}  Be5 {[%clk 0:01:09]} 25. Qb5 {[%clk 0:01:05]}  Qg5 {[%clk 0:01:02]} 26. Bxe5 {[%clk 0:00:57]}  Nxe5 {[%clk 0:00:56]} 27. Qxb7 {[%clk 0:00:55]}  Nxd3 {[%clk 0:00:53]} 28. Qxf7# {[%clk 0:00:54]} 1-0


[Site "https://www.chess.com"]

[Event "Titled Tuesday Blitz April 19 Early 2022"]
[White "Legenia, Artem"]
[Black "Warchol, Kamil"]
[WhiteFideId "14136945"]
[BlackFideId "21858241"]
[WhiteElo "1936"]
[BlackElo "1910"]
[Result "1-0"]
[Round "10"]
[TimeControl "180+1"]
[Date "2022.04.19"]
[WhiteClock "0:00:54"]
[BlackClock "0:01:05"]

1. Nf3 {[%clk 0:03:00]}  d5 {[%clk 0:02:59]} 2. g3 {[%clk 0:02:49]}  Nf6 {[%clk 0:02:59]} 3. Bg2 {[%clk 0:02:42]}  c6 {[%clk 0:02:59]} 4. d3 {[%clk 0:02:40]}  Bf5 {[%clk 0:02:59]} 5. Nbd2 {[%clk 0:02:40]}  h6 {[%clk 0:02:55]} 6. c4 {[%clk 0:02:39]}  Nbd7 {[%clk 0:02:53]} 7. O-O {[%clk 0:02:39]}  e6 {[%clk 0:02:52]} 8. b3 {[%clk 0:02:39]}  Be7 {[%clk 0:02:51]} 9. Bb2 {[%clk 0:02:40]}  O-O {[%clk 0:02:51]} 10. Qc2 {[%clk 0:02:40]}  a5 {[%clk 0:02:51]} 11. a3 {[%clk 0:02:40]}  Ne8 {[%clk 0:02:50]} 12. e4 {[%clk 0:02:40]}  Bh7 {[%clk 0:02:47]} 13. Rfe1 {[%clk 0:02:38]}  Rc8 {[%clk 0:02:39]} 14. Rad1 {[%clk 0:02:37]}  Qb6 {[%clk 0:02:35]} 15. Qb1 {[%clk 0:02:35]}  Nc5 {[%clk 0:02:32]} 16. Qc2 {[%clk 0:02:32]}  Na6 {[%clk 0:02:26]} 17. cxd5 {[%clk 0:02:24]}  exd5 {[%clk 0:02:24]} 18. exd5 {[%clk 0:02:24]}  Bf6 {[%clk 0:02:22]} 19. Nc4 {[%clk 0:02:21]}  cxd5 {[%clk 0:02:20]} 20. Nxb6 {[%clk 0:02:17]}  Rxc2 {[%clk 0:02:19]} 21. Bxf6 {[%clk 0:02:15]}  Nxf6 {[%clk 0:02:20]} 22. Nd4 {[%clk 0:02:05]}  Rc7 {[%clk 0:02:12]} 23. Nb5 {[%clk 0:01:56]}  Rc5 {[%clk 0:01:59]} 24. Nd4 {[%clk 0:01:53]}  Rc3 {[%clk 0:01:48]} 25. Nxd5 {[%clk 0:01:46]}  Nxd5 {[%clk 0:01:47]} 26. Bxd5 {[%clk 0:01:46]}  Rd8 {[%clk 0:01:47]} 27. Bxb7 {[%clk 0:01:44]}  Nc5 {[%clk 0:01:43]} 28. Nc6 {[%clk 0:01:34]}  Rf8 {[%clk 0:01:33]} 29. Ne7+ {[%clk 0:01:33]}  Kh8 {[%clk 0:01:33]} 30. Be4 {[%clk 0:01:31]}  Nxe4 {[%clk 0:01:30]} 31. dxe4 {[%clk 0:01:31]}  Rxb3 {[%clk 0:01:30]} 32. Re3 {[%clk 0:01:06]}  Rxe3 {[%clk 0:01:27]} 33. fxe3 {[%clk 0:01:06]}  Bxe4 {[%clk 0:01:27]} 34. Rd4 {[%clk 0:01:05]}  Bc2 {[%clk 0:01:22]} 35. Nc6 {[%clk 0:01:03]}  a4 {[%clk 0:01:19]} 36. Rd8 {[%clk 0:00:55]}  Kg8 {[%clk 0:01:10]} 37. Ne7+ {[%clk 0:00:54]}  Kh7 {[%clk 0:01:05]} 38. Rxf8 {[%clk 0:00:54]} 1-0


[Site "https://www.chess.com"]

[Event "Titled Tuesday Blitz April 19 Early 2022"]
[White "Mangialardo, Tiago Carvalho"]
[Black "Sukandar, Irine Kharisma"]
[WhiteFideId "2130718"]
[BlackFideId "7101937"]
[WhiteElo "2061"]
[BlackElo "2293"]
[Result "0-1"]
[Round "10"]
[TimeControl "180+1"]
[Date "2022.04.19"]
[WhiteClock "0:00:02"]
[BlackClock "0:00:06"]

1. e4 {[%clk 0:03:00]}  e5 {[%clk 0:02:53]} 2. Nf3 {[%clk 0:03:01]}  d6 {[%clk 0:02:53]} 3. d4 {[%clk 0:03:00]}  exd4 {[%clk 0:02:53]} 4. Nxd4 {[%clk 0:03:01]}  Nf6 {[%clk 0:02:53]} 5. Bc4 {[%clk 0:02:59]}  Be7 {[%clk 0:02:51]} 6. Nc3 {[%clk 0:02:56]}  O-O {[%clk 0:02:51]} 7. O-O {[%clk 0:02:56]}  Nxe4 {[%clk 0:02:50]} 8. Nxe4 {[%clk 0:02:20]}  d5 {[%clk 0:02:50]} 9. Bd3 {[%clk 0:02:20]}  dxe4 {[%clk 0:02:50]} 10. Bxe4 {[%clk 0:02:21]}  c6 {[%clk 0:02:41]} 11. c3 {[%clk 0:02:04]}  Bf6 {[%clk 0:02:33]} 12. Be3 {[%clk 0:02:00]}  Na6 {[%clk 0:02:24]} 13. Re1 {[%clk 0:01:33]}  Nc5 {[%clk 0:02:16]} 14. Bxh7+ {[%clk 0:01:32]}  Kxh7 {[%clk 0:02:14]} 15. Qh5+ {[%clk 0:01:32]}  Kg8 {[%clk 0:02:14]} 16. Qxc5 {[%clk 0:01:33]}  Bd7 {[%clk 0:02:07]} 17. Rad1 {[%clk 0:01:29]}  Qc8 {[%clk 0:01:59]} 18. h3 {[%clk 0:01:16]}  b6 {[%clk 0:01:57]} 19. Qh5 {[%clk 0:01:15]}  c5 {[%clk 0:01:55]} 20. Nf3 {[%clk 0:01:08]}  g6 {[%clk 0:01:55]} 21. Qh6 {[%clk 0:00:52]}  Bg7 {[%clk 0:01:53]} 22. Qh4 {[%clk 0:00:46]}  Bc6 {[%clk 0:01:25]} 23. Ng5 {[%clk 0:00:43]}  Re8 {[%clk 0:01:25]} 24. Rd6 {[%clk 0:00:09]}  Bb7 {[%clk 0:01:18]} 25. Red1 {[%clk 0:00:03]}  Bc6 {[%clk 0:00:43]} 26. Qh7+ {[%clk 0:00:01]}  Kf8 {[%clk 0:00:43]} 27. Nxf7 {[%clk 0:00:01]}  Kxf7 {[%clk 0:00:40]} 28. Rxg6 {[%clk 0:00:01]}  Rg8 {[%clk 0:00:34]} 29. Bh6 {[%clk 0:00:01]}  Qf8 {[%clk 0:00:14]} 30. Rxg7+ {[%clk 0:00:02]}  Rxg7 {[%clk 0:00:14]} 31. Bxg7 {[%clk 0:00:02]}  Qxg7 {[%clk 0:00:14]} 32. Qf5+ {[%clk 0:00:03]}  Qf6 {[%clk 0:00:13]} 33. Qh5+ {[%clk 0:00:02]}  Kg7 {[%clk 0:00:12]} 34. Rd3 {[%clk 0:00:02]}  Rg8 {[%clk 0:00:06]} 0-1


[Site "https://www.chess.com"]

[Event "Titled Tuesday Blitz April 19 Early 2022"]
[White "Marczuk, Dominik"]
[Black "Zemlyanskii, Ivan"]
[WhiteFideId "1111264"]
[BlackFideId "24249971"]
[WhiteElo "1912"]
[BlackElo "1759"]
[Result "0-1"]
[Round "10"]
[TimeControl "180+1"]
[Date "2022.04.19"]
[WhiteClock "0:00:07"]
[BlackClock "0:00:34"]

1. e4 {[%clk 0:02:57]}  c5 {[%clk 0:02:59]} 2. Nf3 {[%clk 0:02:57]}  d6 {[%clk 0:02:59]} 3. d4 {[%clk 0:02:56]}  Nf6 {[%clk 0:02:57]} 4. Nc3 {[%clk 0:02:56]}  cxd4 {[%clk 0:02:57]} 5. Nxd4 {[%clk 0:02:57]}  a6 {[%clk 0:02:57]} 6. f3 {[%clk 0:02:56]}  e5 {[%clk 0:02:54]} 7. Nb3 {[%clk 0:02:56]}  Be6 {[%clk 0:02:51]} 8. Be3 {[%clk 0:02:56]}  h5 {[%clk 0:02:51]} 9. Qd2 {[%clk 0:02:53]}  Nbd7 {[%clk 0:02:50]} 10. Nd5 {[%clk 0:02:52]}  Bxd5 {[%clk 0:02:49]} 11. exd5 {[%clk 0:02:53]}  Rc8 {[%clk 0:02:50]} 12. c4 {[%clk 0:02:49]}  b6 {[%clk 0:02:47]} 13. Be2 {[%clk 0:02:42]}  g6 {[%clk 0:02:47]} 14. O-O {[%clk 0:02:42]}  Bg7 {[%clk 0:02:47]} 15. a4 {[%clk 0:02:39]}  a5 {[%clk 0:02:46]} 16. Nc1 {[%clk 0:02:39]}  O-O {[%clk 0:02:45]} 17. b4 {[%clk 0:02:36]}  axb4 {[%clk 0:02:40]} 18. Qxb4 {[%clk 0:02:37]}  e4 {[%clk 0:02:40]} 19. Rb1 {[%clk 0:02:32]}  exf3 {[%clk 0:02:27]} 20. Bxf3 {[%clk 0:02:29]}  Re8 {[%clk 0:02:26]} 21. Bf4 {[%clk 0:01:40]}  Ne5 {[%clk 0:02:23]} 22. Qxb6 {[%clk 0:01:34]}  Qe7 {[%clk 0:02:21]} 23. Qf2 {[%clk 0:01:09]}  Rxc4 {[%clk 0:02:07]} 24. Bxe5 {[%clk 0:01:09]}  Qxe5 {[%clk 0:02:07]} 25. Nd3 {[%clk 0:01:06]}  Qc3 {[%clk 0:02:02]} 26. Nb2 {[%clk 0:00:52]}  Ng4 {[%clk 0:01:48]} 27. Qg3 {[%clk 0:00:35]}  Qd4+ {[%clk 0:01:40]} 28. Kh1 {[%clk 0:00:35]}  Rc3 {[%clk 0:01:33]} 29. Rbd1 {[%clk 0:00:29]}  Qb6 {[%clk 0:01:25]} 30. Nd3 {[%clk 0:00:27]}  Ne3 {[%clk 0:01:22]} 31. Rfe1 {[%clk 0:00:27]}  Qd8 {[%clk 0:01:04]} 32. Rd2 {[%clk 0:00:22]}  Nf5 {[%clk 0:00:59]} 33. Qf2 {[%clk 0:00:20]}  Bd4 {[%clk 0:00:56]} 34. Qf1 {[%clk 0:00:18]}  Rxe1 {[%clk 0:00:54]} 35. Qxe1 {[%clk 0:00:19]}  Qa5 {[%clk 0:00:51]} 36. Be4 {[%clk 0:00:12]}  Ne3 {[%clk 0:00:47]} 37. Re2 {[%clk 0:00:13]}  Ng4 {[%clk 0:00:39]} 38. h3 {[%clk 0:00:12]}  Ne5 {[%clk 0:00:36]} 39. Nxe5 {[%clk 0:00:09]}  Bxe5 {[%clk 0:00:37]} 40. Rc2 {[%clk 0:00:07]}  Rxc2 {[%clk 0:00:34]} 0-1


[Site "https://www.chess.com"]

[Event "Titled Tuesday Blitz April 19 Early 2022"]
[White "Melikhov, Evgeny V."]
[Black "Avramidou, Anastasia"]
[WhiteFideId "4122046"]
[BlackFideId "4239873"]
[WhiteElo "1931"]
[BlackElo "2183"]
[Result "1-0"]
[Round "10"]
[TimeControl "180+1"]
[Date "2022.04.19"]
[WhiteClock "0:00:15"]
[BlackClock "0:00:07"]

1. d4 {[%clk 0:02:59]}  Nf6 {[%clk 0:02:59]} 2. c4 {[%clk 0:02:58]}  e6 {[%clk 0:03:00]} 3. Nc3 {[%clk 0:02:58]}  c5 {[%clk 0:03:01]} 4. d5 {[%clk 0:02:58]}  exd5 {[%clk 0:03:02]} 5. cxd5 {[%clk 0:02:58]}  d6 {[%clk 0:03:02]} 6. Nf3 {[%clk 0:02:58]}  g6 {[%clk 0:03:03]} 7. h3 {[%clk 0:02:58]}  Bg7 {[%clk 0:03:04]} 8. e4 {[%clk 0:02:59]}  O-O {[%clk 0:03:05]} 9. Bd3 {[%clk 0:02:59]}  Na6 {[%clk 0:03:05]} 10. O-O {[%clk 0:02:58]}  Nc7 {[%clk 0:03:06]} 11. Re1 {[%clk 0:02:58]}  Re8 {[%clk 0:03:07]} 12. Bg5 {[%clk 0:02:55]}  h6 {[%clk 0:03:07]} 13. Bf4 {[%clk 0:02:50]}  Rb8 {[%clk 0:02:58]} 14. a4 {[%clk 0:02:47]}  Nh5 {[%clk 0:02:54]} 15. Bh2 {[%clk 0:02:46]}  b6 {[%clk 0:02:53]} 16. e5 {[%clk 0:02:40]}  dxe5 {[%clk 0:02:51]} 17. Nxe5 {[%clk 0:02:39]}  Bb7 {[%clk 0:02:30]} 18. d6 {[%clk 0:02:05]}  Ne6 {[%clk 0:02:26]} 19. Nxg6 {[%clk 0:01:58]}  fxg6 {[%clk 0:02:16]} 20. Bxg6 {[%clk 0:01:58]}  Qg5 {[%clk 0:01:33]} 21. Qg4 {[%clk 0:01:56]}  Qxg4 {[%clk 0:01:34]} 22. hxg4 {[%clk 0:01:56]}  Nf6 {[%clk 0:01:34]} 23. d7 {[%clk 0:01:45]}  Nxd7 {[%clk 0:01:20]} 24. Bxb8 {[%clk 0:01:44]}  Rxb8 {[%clk 0:01:17]} 25. Rxe6 {[%clk 0:01:43]}  Nf8 {[%clk 0:01:18]} 26. Re8 {[%clk 0:01:38]}  Rxe8 {[%clk 0:00:53]} 27. Bxe8 {[%clk 0:01:38]}  Ne6 {[%clk 0:00:54]} 28. Bb5 {[%clk 0:01:32]}  Nd4 {[%clk 0:00:54]} 29. Bc4+ {[%clk 0:01:32]}  Kf8 {[%clk 0:00:53]} 30. Bd5 {[%clk 0:01:32]}  Ba6 {[%clk 0:00:54]} 31. Nb5 {[%clk 0:01:28]}  Bxb5 {[%clk 0:00:46]} 32. axb5 {[%clk 0:01:27]}  Nxb5 {[%clk 0:00:46]} 33. Rb1 {[%clk 0:00:56]}  Ke7 {[%clk 0:00:44]} 34. Bf3 {[%clk 0:00:49]}  Nd4 {[%clk 0:00:43]} 35. Bd1 {[%clk 0:00:47]}  a5 {[%clk 0:00:43]} 36. b3 {[%clk 0:00:46]}  Kd6 {[%clk 0:00:43]} 37. f4 {[%clk 0:00:44]}  b5 {[%clk 0:00:42]} 38. Kf2 {[%clk 0:00:44]}  c4 {[%clk 0:00:28]} 39. bxc4 {[%clk 0:00:43]}  b4 {[%clk 0:00:28]} 40. Ba4 {[%clk 0:00:41]}  Kc5 {[%clk 0:00:27]} 41. Ke3 {[%clk 0:00:33]}  Kxc4 {[%clk 0:00:12]} 42. Rc1+ {[%clk 0:00:33]}  Kd5 {[%clk 0:00:12]} 43. Kd3 {[%clk 0:00:32]}  Ne6 {[%clk 0:00:11]} 44. Bb3+ {[%clk 0:00:28]}  Kd6 {[%clk 0:00:12]} 45. Bxe6 {[%clk 0:00:26]}  Kxe6 {[%clk 0:00:13]} 46. Rc6+ {[%clk 0:00:22]}  Kd5 {[%clk 0:00:11]} 47. Ra6 {[%clk 0:00:22]}  b3 {[%clk 0:00:11]} 48. Rxa5+ {[%clk 0:00:21]}  Kd6 {[%clk 0:00:12]} 49. g5 {[%clk 0:00:20]}  b2 {[%clk 0:00:09]} 50. Kc2 {[%clk 0:00:19]}  hxg5 {[%clk 0:00:07]} 51. Rxg5 {[%clk 0:00:19]}  Bd4 {[%clk 0:00:07]} 52. g4 {[%clk 0:00:17]}  Ke6 {[%clk 0:00:08]} 53. Rg6+ {[%clk 0:00:16]}  Kf7 {[%clk 0:00:08]} 54. Rc6 {[%clk 0:00:15]}  Ke7 {[%clk 0:00:07]} 55. f5 {[%clk 0:00:15]}  Kf7 {[%clk 0:00:07]} 56. Rc4 {[%clk 0:00:15]}  Be5 {[%clk 0:00:07]} 57. Rb4 {[%clk 0:00:15]}  Kf6 {[%clk 0:00:07]} 58. Rxb2 {[%clk 0:00:15]} 1-0


[Site "https://www.chess.com"]